[Event "Gibraltar Amateurs B 2019"]
[Site "Caleta"]
[Date "2019.01.29"]
[Round "4"]
[White "Sharma Pankaj"]
[Black "Lochte, Szilvia"]
[Result "1-0"]
[ECO "B43"]
[WhiteElo "1809"]
[BlackElo "1868"]
[Annotator "NA RC"]
[PlyCount "75"]
[EventDate "2019.01.18"]
[EventType "swiss"]
[EventCountry "GGB"]
[SourceTitle "playchess.com"]
[Source "ChessBase"]
[SourceQuality "1"]
[TimeControl "6600+10"]

1. e4 {[%emt 0:00:04]} c5 {[%emt 0:00:12]} 2. Nf3 {[%emt 0:00:02]} e6 {[%emt 0:00:08]} 3. d4 {[%emt 0:00:31]} cxd4 {[%emt 0:00:08]} 4. Nxd4 {[%emt 0:00:04]} a6 {[%emt 0:00:04]} 5. Nc3 {[%emt 0:00:25]} Qc7 {[%emt 0:00:20]} 6. Be3 {[%emt 0:01:22]} Nf6 {[%emt 0:00:14]} 7. a3 {[%emt 0:03:14]} Be7 {[%emt 0:05:43] B43: Sicilian: Kan Variation: 5 Nc3} (7... b5 8. Bd3 Bb7 9. Qf3 d6 10. Qg3 Nbd7 11. O-O h5 12. h3 h4 13. Qf3 Be7 14. Nb3 d5 15. Bf4 e5 {0-1 (31) Escobar Medina,A (2343)-Iturrizaga Bonelli,E (2663) Medellin 2017}) 8. Bd3 {[%emt 0:00:19]} d6 {[%emt 0:01:04]} 9. O-O {[%emt 0:00:09]} Nbd7 {[%emt 0:00:19]} 10. f4 {[%emt 0:05:05]} b6 {[%emt 0:08:13]} 11. Qe2 {[%emt 0:03:04]} Bb7 {[%emt 0:03:59]} 12. Kh1 $146 {[%emt 0:02:44]} ({Predecessor:} 12. Rae1 g6 13. h3 b5 14. Qf2 {0-1 (44) Plenca,J (2351)-Sulava,N (2484) Pula 2013}) 12... O-O {[%emt 0:05:44]} 13. Rae1 {[%emt 0:03:16]} Nc5 {[%emt 0:10:31]} 14. Bg1 {[%emt 0:09:29]} Nxd3 {[%emt 0:13:36]} 15. cxd3 {[%emt 0:01:11]} Rfe8 {[%emt 0:03:39]} 16. Rc1 {[%emt 0:09:06]} Qd8 {[%emt 0:13:53]} 17. Be3 {[%emt 0:05:37]} Rc8 {[%emt 0:05:13]} 18. Rf3 {[%emt 0:10:43]} d5 {[%emt 0:08:29]} 19. e5 {[%emt 0:00:54]} Ng4 {[%emt 0:01:11]} 20. Bg1 {[%emt 0:03:44]} h5 {[%emt 0:02:45]} 21. h3 {[%emt 0:28:40]} Nh6 {[%emt 0:00:34]} 22. Rcf1 {[%emt 0:03:09]} g6 {[%emt 0:01:13]} 23. Be3 {[%emt 0:00:43]} Kg7 {[%emt 0:04:03]} 24. Qd2 {[%emt 0:09:36]} Nf5 {[%emt 0:00:43]} 25. Nxf5+ {[%emt 0:00:05]} exf5 {[%emt 0:00:14]} 26. Bd4 {[%emt 0:01:38]} Bc5 {[%emt 0:02:27]} 27. Qe3 {[%emt 0:00:02]} Re6 {[%emt 0:02:28]} 28. Kg1 {[%emt 0:02:14]} Qc7 {[%emt 0:03:13]} 29. Ne2 {[%emt 0:01:42]} Kg8 {[%emt 0:02:19]} 30. b4 $14 {[%emt 0:01:40]} Bxd4 {[%emt 0:03:00]} 31. Nxd4 {[%emt 0:00:01]} Ree8 {[%emt 0:00:43]} 32. Rg3 {[%emt 0:00:34]} Qd7 {[%emt 0:04:26]} 33. Qf3 {[%emt 0:00:27]} Kh7 {[%emt 0:00:57]} 34. Rg5 {[%emt 0:00:15]} Rh8 {[%emt 0:02:23]} 35. Nxf5 {[%emt 0:01:57]} Kg8 {[%emt 0:00:51]} 36. Nd6 {[%emt 0:00:27]} Rc7 {[%emt 0:00:43]} 37. f5 {[%emt 0:00:25]} d4 {[%emt 0:00:55]} 38. Qf4 1-0

[Event "Gibraltar Amateurs B 2019"]
[Site "Caleta"]
[Date "2019.01.29"]
[Round "4"]
[White "Longdin, Michael"]
[Black "Robson, Paul E"]
[Result "0-1"]
[ECO "B22"]
[WhiteElo "1735"]
[BlackElo "1861"]
[Annotator "NA"]
[PlyCount "85"]
[EventDate "2019.01.18"]
[EventType "swiss"]
[EventCountry "GGB"]
[SourceTitle "playchess.com"]
[Source "ChessBase"]
[SourceQuality "1"]
[TimeControl "6600+10"]

1. d4 {[%emt 0:02:16]} c5 {[%emt 0:00:10]} 2. c3 {[%emt 0:00:21]} g6 {[%emt 0:00:32]} 3. e4 {[%emt 0:01:49]} cxd4 {[%emt 0:00:09]} 4. cxd4 {[%emt 0:00:06]} d5 {[%emt 0:00:04]} 5. Nc3 {[%emt 0:05:39]} dxe4 {[%emt 0:00:07]} 6. Nxe4 {[%emt 0:00:07]} Bg7 {[%emt 0:01:21]} 7. Nf3 {[%emt 0:00:53]} Nf6 {[%emt 0:00:52] B22: Sicilian: 2 c3} 8. Nxf6+ {[%emt 0:01:22]} Bxf6 {[%emt 0:00:13]} 9. Bb5+ {[%emt 0:04:14]} (9. Bh6 Qa5+ 10. Bd2 Qb6 11. Bc3 O-O 12. Be2 Rd8 13. Qa4 Nc6 14. Rd1 Bg4 15. d5 Bxc3+ 16. bxc3 Bxf3 17. Bxf3 {½-½ (45) Kharlov,A (2558)-Gashimov,V (2625) playchess.com INT 2006}) 9... Nd7 {[%emt 0:02:02]} 10. O-O {[%emt 0:01:36]} O-O {[%emt 0:01:02]} 11. Bh6 {[%emt 0:02:13]} Re8 {[%emt 0:00:08]} 12. Re1 $146 {[%emt 0:04:45]} ({Predecessor:} 12. Ne5 a6 13. Ba4 Bg7 14. Bxg7 Kxg7 15. Re1 {0-1 (40) Aglietti,G (2043)-Dragojlovic,A (2298) Novara 2004}) 12... a6 {[%emt 0:00:24]} 13. Ba4 {[%emt 0:02:04]} b5 {[%emt 0:09:25]} 14. Bb3 {[%emt 0:01:37]} Bb7 {[%emt 0:01:27]} 15. Ng5 {[%emt 0:02:12]} Bxg5 {[%emt 0:07:40]} 16. Bxg5 {[%emt 0:00:07]} Nf6 {[%emt 0:06:21]} 17. Qe2 {[%emt 0:05:28]} Nd5 {[%emt 0:05:24]} 18. Rac1 {[%emt 0:06:07]} Qd6 {[%emt 0:10:49]} 19. Bh4 {[%emt 0:08:59]} e6 {[%emt 0:07:21]} ({Black should play} 19... Nf4 $17 20. Qd1 Nxg2) 20. Bg3 {[%emt 0:03:41]} Qd7 {[%emt 0:03:36]} 21. Qd2 {[%emt 0:06:24]} Rac8 {[%emt 0:09:19]} 22. a3 {[%emt 0:05:25]} Kg7 {[%emt 0:02:29]} 23. Be5+ {[%emt 0:06:32]} f6 {[%emt 0:00:28]} 24. Bg3 {[%emt 0:00:11]} Rxc1 {[%emt 0:05:13]} 25. Rxc1 {[%emt 0:01:32]} Rc8 {[%emt 0:01:50]} 26. Rc5 {[%emt 0:04:32]} Ne7 {[%emt 0:03:13]} 27. Rxc8 {[%emt 0:08:03]} Qxc8 {[%emt 0:00:37]} 28. f3 {[%emt 0:01:09]} Qd7 {[%emt 0:04:19]} 29. Qe3 {[%emt 0:06:25]} Bd5 {[%emt 0:10:08]} 30. Bc2 {[%emt 0:03:23]} Nc6 {[%emt 0:02:26]} 31. b3 {[%emt 0:04:34]} b4 {[%emt 0:04:20]} 32. a4 {[%emt 0:00:24]} Na5 {[%emt 0:00:50]} 33. Be1 {[%emt 0:01:54]} Nc6 {[%emt 0:01:56]} 34. Bd2 {[%emt 0:01:25]} Kg8 {[%emt 0:02:23]} 35. h4 {[%emt 0:00:25]} Qa7 {[%emt 0:00:23]} 36. Kh1 {[%emt 0:04:47]} Qxd4 {[%emt 0:01:08]} 37. Qxd4 {[%emt 0:00:17]} Nxd4 {[%emt 0:00:08]} 38. Bd3 {[%emt 0:00:29]} a5 {[%emt 0:00:19]} 39. Bc4 {[%emt 0:00:19]} Nxb3 {[%emt 0:00:15]} 40. Bxd5 {[%emt 0:00:11]} exd5 {[%emt 0:00:27]} 41. Be3 {[%emt 0:00:28]} d4 {[%emt 0:00:13]} 42. Bf4 $19 {[%emt 0:00:17]} d3 {[%emt 0:01:19]} 43. Kg1 {[%emt 0:02:05]} 0-1

[Event "Gibraltar Amateurs B 2019"]
[Site "Caleta"]
[Date "2019.01.29"]
[Round "4"]
[White "Deus, Pedro"]
[Black "Johansson, Daniel"]
[Result "1-0"]
[ECO "B01"]
[WhiteElo "1729"]
[BlackElo "1859"]
[Annotator "NA RC"]
[PlyCount "58"]
[EventDate "2019.01.18"]
[EventType "swiss"]
[EventCountry "GGB"]
[SourceTitle "playchess.com"]
[Source "ChessBase"]
[SourceQuality "1"]
[TimeControl "6600+10"]

1. e4 {[%emt 0:00:00]} d5 {[%emt 0:05:29]} 2. exd5 {[%emt 0:00:15]} Qxd5 {[%emt 0:00:08]} 3. Nc3 {[%emt 0:00:08]} Qd6 {[%emt 0:00:03]} 4. d4 {[%emt 0:00:16]} Nf6 {[%emt 0:00:06]} 5. Nf3 {[%emt 0:00:14]} c6 {[%emt 0:00:09]} 6. Bc4 {[%emt 0:02:05] B01: Scandinavian Defence} (6. g3 Bf5 7. Bg2 h6 8. O-O e6 9. Na4 Nbd7 10. Bf4 Qe7 11. c4 g5 12. Be3 Bg7 13. Qb3 Rb8 {1-0 (88) Grandelius,N (2655)-Andreikin,D (2723) Porto Carras 2018}) 6... Bg4 {[%emt 0:00:47]} 7. Be3 {[%emt 0:00:41]} e6 {[%emt 0:01:03]} 8. h3 {[%emt 0:00:48]} Bh5 {[%emt 0:00:18]} 9. g4 {[%emt 0:01:31]} Bg6 {[%emt 0:00:07]} 10. Ne5 {[%emt 0:01:38]} Nbd7 {[%emt 0:04:35]} 11. f4 {[%emt 0:12:42]} Nb6 $146 {[%emt 0:03:31]} ({Predecessor:} 11... Ne4 12. Nxd7 Kxd7 13. Bd3 Nxc3 14. bxc3 Bxd3 15. Qxd3 {½-½ (62) Popovich,A (1973)-Slugin,Y (2103) St Petersburg 2018}) 12. Bb3 {[%emt 0:08:15]} Nbd5 {[%emt 0:04:27]} 13. Bd2 {[%emt 0:06:54]} Be7 {[%emt 0:05:49]} 14. Qe2 {[%emt 0:01:18]} Nxc3 {[%emt 0:07:13]} 15. Bxc3 {[%emt 0:03:24]} Ne4 {[%emt 0:10:13]} 16. O-O-O {[%emt 0:13:18]} Nxc3 {[%emt 0:10:33]} 17. bxc3 {[%emt 0:00:06]} Bf6 {[%emt 0:10:57] [#]} (17... f6 $16) 18. f5 $1 {[%emt 0:15:47]} Bxe5 {[%emt 0:01:03]} 19. dxe5 {[%emt 0:00:30]} Qa3+ {[%emt 0:00:27]} 20. Kb1 {[%emt 0:00:13]} exf5 {[%emt 0:00:36]} 21. gxf5 {[%emt 0:03:21]} Bxf5 {[%emt 0:01:43]} 22. Bxf7+ {[%emt 0:00:41]} Kxf7 {[%emt 0:01:19]} 23. Rhf1 {[%emt 0:02:34]} ({Inferior is} 23. Qc4+ Ke7 $17) 23... g6 $2 {[%emt 0:04:19]} (23... Rhd8 $16 24. Rxf5+ Kg8) 24. Rxf5+ {[%emt 0:02:40]} gxf5 {[%emt 0:00:14] [#]} 25. Qh5+ {[%emt 0:02:09]} Ke6 {[%emt 0:06:58]} 26. Qh6+ {[%emt 0:03:38]} Kxe5 {[%emt 0:00:17]} 27. Re1+ {[%emt 0:00:29]} Kd5 {[%emt 0:00:22]} 28. Qe6+ {[%emt 0:00:20]} Kc5 {[%emt 0:00:04]} 29. Qe7+ {[%emt 0:00:58]} Kd5 {[%emt 0:00:08]} 1-0

[Event "Gibraltar Amateurs B 2019"]
[Site "Caleta"]
[Date "2019.01.29"]
[Round "4"]
[White "Kuenitz, Klaus"]
[Black "Carr, Jay"]
[Result "0-1"]
[ECO "E12"]
[WhiteElo "1723"]
[BlackElo "1842"]
[Annotator "NA RC"]
[PlyCount "67"]
[EventDate "2019.01.18"]
[EventType "swiss"]
[EventCountry "GGB"]
[SourceTitle "playchess.com"]
[Source "ChessBase"]
[SourceQuality "1"]
[TimeControl "6600+10"]

{[%evp 27,67,31,32767,32767,32767,32767,54,32767,32767,0,32767,32,46,32767,62,69,65,70,96,62,133,32767,141,147,147,64,61,39,77,32767,32767,32767,32767,32767,-48,-100,-35,-125,-88,-932,-930,-1247]} 1. d4 {[%emt 0:00:00]} Nf6 {[%emt 0:00:00]} 2. c4 {[%emt 0:00:09]} e6 {[%emt 0:00:00]} 3. Nf3 {[%emt 0:00:24]} b6 {[%emt 0:00:01]} 4. Bg5 {[%emt 0:00:45]} Bb7 {[%emt 0:02:12]} 5. e3 {[%emt 0:00:24]} h6 {[%emt 0:02:53]} 6. Bh4 {[%emt 0:00:41]} g5 {[%emt 0:15:01] E12: Queen's Indian: Unusual White 4th moves, 4 a3, 4 Nc3 Bb7 5 a3 and 4 Nc3 Bb7} (6... Be7 7. Nc3 Ne4 8. Nxe4 Bxh4 9. Bd3 Be7 10. O-O O-O 11. Nc3 d5 12. cxd5 exd5 13. Ne5 Nd7 14. f4 c5 15. Qf3 Nf6 {1-0 (93) Kozul,Z (2597)-Fedorchuk,S (2666) Warsaw 2013}) 7. Bg3 {[%emt 0:00:47]} Bb4+ {[%emt 0:01:09]} 8. Nfd2 {[%emt 0:03:14]} c5 $146 {[%emt 0:11:09]} ({Predecessor:} 8... Ne4 9. a3 Nxg3 10. hxg3 Bf8 11. Nc3 d6 12. d5 exd5 13. cxd5 Bg7 14. Rc1 Bxc3 15. Rxc3 Bxd5 {1-0 (35) Pozin,S (2436)-Ilandzis,S (2196) Olomouc 2008}) 9. a3 {[%emt 0:04:02]} Bxd2+ {[%emt 0:01:52]} 10. Nxd2 {[%emt 0:00:37]} cxd4 {[%emt 0:03:37]} 11. exd4 {[%emt 0:00:25]} d6 {[%emt 0:04:04]} 12. f3 {[%emt 0:03:02]} Qe7 {[%emt 0:10:41]} 13. Be2 {[%emt 0:01:03]} Nh5 {[%emt 0:03:51]} 14. Bf2 {[%emt 0:01:18]} Nf4 {[%emt 0:00:23]} 15. Bf1 {[%emt 0:00:54]} f5 {[%emt 0:04:00]} 16. g3 {[%emt 0:00:49]} Ng6 {[%emt 0:00:44]} 17. Bg2 {[%emt 0:02:19]} Nd7 {[%emt 0:06:44]} 18. O-O {[%emt 0:00:31]} O-O {[%emt 0:01:44]} 19. Re1 {[%emt 0:03:56]} Qf7 {[%emt 0:01:39]} 20. b4 {[%emt 0:05:30]} a5 {[%emt 0:06:31]} 21. Rc1 {[%emt 0:04:13]} axb4 {[%emt 0:03:03]} 22. axb4 {[%emt 0:00:33]} Ra2 {[%emt 0:06:26]} 23. Rc2 {[%emt 0:02:32]} Ra3 {[%emt 0:01:12]} ({Black should play} 23... Rxc2 $14 24. Qxc2 Ra8) 24. Re3 {[%emt 0:03:10]} Rfa8 {[%emt 0:02:43]} ({Black should play} 24... Ra4 $14) 25. Rxa3 {[%emt 0:00:23]} Rxa3 {[%emt 0:00:01] [#]} 26. Qc1 {[%emt 0:00:52]} ({Better is} 26. c5 $1 $16 dxc5 27. Nc4 (27. bxc5 bxc5 28. Nc4 Ra6 $14) 27... cxb4 28. Nxa3 (28. Nd6 Qe7 $14) 28... bxa3 29. Qa1) 26... Ra4 {[%emt 0:01:05]} 27. Qb2 {[%emt 0:02:12]} Qe8 {[%emt 0:03:10]} 28. c5 {[%emt 0:00:07]} dxc5 {[%emt 0:03:59]} 29. bxc5 {[%emt 0:01:16]} Qa8 {[%emt 0:00:22]} 30. Rc1 {[%emt 0:00:50]} bxc5 {[%emt 0:00:29]} 31. dxc5 {[%emt 0:00:39] [#]} Nde5 {[%emt 0:01:24]} (31... Nge5 $1 $17 32. Rc2 Bd5) 32. Qb6 {[%emt 0:03:28]} (32. Rb1 $1 $11 {remains equal.} Bd5 33. Bd4) 32... Ra6 {[%emt 0:01:42]} 33. Qc7 $2 {[%emt 0:01:02]} (33. Qb2 $17) 33... Rc6 {[%emt 0:00:23]} 34. Qb6 $19 {[%emt 0:01:55]} 0-1

[Event "Gibraltar Amateurs B 2019"]
[Site "Caleta"]
[Date "2019.01.29"]
[Round "4"]
[White "Bauer, Dieter"]
[Black "Pink, Joshua"]
[Result "1/2-1/2"]
[ECO "A09"]
[WhiteElo "1714"]
[BlackElo "1890"]
[Annotator "NA"]
[PlyCount "123"]
[EventDate "2019.01.18"]
[EventType "swiss"]
[EventCountry "GGB"]
[SourceTitle "playchess.com"]
[Source "ChessBase"]
[SourceQuality "1"]
[TimeControl "6600+10"]

1. c4 {[%emt 0:00:00]} e6 {[%emt 0:00:50]} 2. g3 {[%emt 0:00:21]} d5 {[%emt 0:00:08]} 3. Bg2 {[%emt 0:00:37]} Nf6 {[%emt 0:00:08]} 4. Nf3 {[%emt 0:00:20]} c5 {[%emt 0:00:36]} 5. O-O {[%emt 0:01:43]} d4 {[%emt 0:00:10]} 6. d3 {[%emt 0:00:34]} Nc6 {[%emt 0:00:39]} 7. a3 {[%emt 0:04:18] A09: Réti Opening: 1 Nf3 d5 2 c4} a5 {[%emt 0:00:34]} 8. e3 {[%emt 0:03:55]} Bd6 {[%emt 0:00:32]} 9. exd4 {[%emt 0:00:12]} cxd4 {[%emt 0:00:07]} 10. Re1 {[%emt 0:01:20]} O-O {[%emt 0:01:51]} 11. Bg5 {[%emt 0:03:02]} h6 {[%emt 0:05:20]} 12. Bxf6 {[%emt 0:00:01]} Qxf6 {[%emt 0:00:09]} 13. Nbd2 {[%emt 0:00:30]} Qd8 {[%emt 0:02:08]} 14. Ne4 $146 {[%emt 0:04:29]} ({Predecessor:} 14. Rc1 Bd7 15. c5 Be7 16. Ne5 Nxe5 17. Rxe5 {0-1 (39) Neef,M (2451)-Jumabayev,R (2610) Barcelona 2017}) 14... Re8 {[%emt 0:04:13]} 15. Rc1 {[%emt 0:02:57]} Bf8 {[%emt 0:05:13]} 16. Rc2 {[%emt 0:08:04]} e5 {[%emt 0:03:04]} 17. Qc1 {[%emt 0:07:04]} f5 {[%emt 0:02:49]} 18. Ned2 {[%emt 0:00:00]} Bc5 {[%emt 0:01:12]} 19. Nb3 {[%emt 0:04:36]} Qb6 {[%emt 0:02:00]} 20. Nxc5 {[%emt 0:00:44]} Qxc5 {[%emt 0:00:05]} 21. Rce2 {[%emt 0:07:25]} Bd7 {[%emt 0:04:15]} 22. b3 {[%emt 0:06:18]} Re7 {[%emt 0:01:52]} 23. Qb2 {[%emt 0:02:32]} Rae8 {[%emt 0:00:18]} 24. Nd2 {[%emt 0:11:12]} e4 {[%emt 0:12:57]} 25. dxe4 {[%emt 0:04:36]} Ne5 {[%emt 0:01:30]} (25... b5 $14) 26. b4 {[%emt 0:04:49]} axb4 {[%emt 0:00:08]} 27. axb4 {[%emt 0:00:02]} Nd3 {[%emt 0:04:20] Double Attack} 28. Qa3 {[%emt 0:04:54]} Nxb4 {[%emt 0:02:23]} 29. e5 {[%emt 0:03:35]} Na6 {[%emt 0:03:24]} (29... Bc6 $11 {keeps the balance.}) 30. Bd5+ {[%emt 0:02:59]} Be6 $1 {[%emt 0:02:36]} 31. Qf3 {[%emt 0:05:32]} Nb4 {[%emt 0:03:47]} 32. Nb3 {[%emt 0:05:49]} Bxd5 {[%emt 0:00:59]} (32... Qb6 $1 $11) 33. cxd5 {[%emt 0:00:45]} Qxd5 {[%emt 0:00:46]} 34. Qxd5+ {[%emt 0:00:09]} Nxd5 {[%emt 0:00:06]} 35. Nxd4 {[%emt 0:00:24]} f4 {[%emt 0:02:38]} 36. Nf5 {[%emt 0:00:39]} Re6 {[%emt 0:01:25]} 37. Nd6 {[%emt 0:01:04]} (37. Rd2 $5 {[%cal Rd2d5]} Ne7 38. Nxe7+ R8xe7 39. gxf4 $16) 37... R8e7 {[%emt 0:00:41]} 38. Nf5 {[%emt 0:00:25]} Re8 {[%emt 0:04:13]} 39. Nd6 {[%emt 0:00:10]} f3 {[%emt 0:02:36]} 40. Re4 {[%emt 0:01:39]} Nc3 {[%emt 0:04:20]} 41. Nxe8 {[%emt 0:00:47]} Nxe4 {[%emt 0:00:10]} 42. Rxe4 {[%emt 0:02:28]} Rxe8 {[%emt 0:00:05]} 43. Rf4 {[%emt 0:00:40]} Rf8 {[%emt 0:02:07]} 44. Rb4 {[%emt 0:00:16]} Rf7 {[%emt 0:02:11]} 45. h4 {[%emt 0:00:29]} Re7 {[%emt 0:00:24]} 46. Rb5 {[%emt 0:00:53]} Kf7 {[%emt 0:00:22] [#]} (46... Rd7 $11) 47. g4 $1 {[%emt 0:00:13]} Ke6 {[%emt 0:00:04]} 48. Kh2 {[%emt 0:00:10]} Rd7 {[%emt 0:01:42]} 49. Kg3 {[%emt 0:00:04]} Rf7 {[%emt 0:00:07]} 50. h5 {[%emt 0:00:35]} b6 {[%emt 0:02:09]} 51. Rxb6+ {[%emt 0:00:21]} Kxe5 {[%emt 0:00:05]} 52. Rg6 {[%emt 0:00:20]} Ke4 {[%emt 0:01:06]} 53. g5 {[%emt 0:00:13]} hxg5 {[%emt 0:01:59]} 54. Rxg5 {[%emt 0:00:04]} Rb7 {[%emt 0:01:31]} 55. Rg6 {[%emt 0:00:44]} Rb1 {[%emt 0:01:17]} 56. Kh2 {[%emt 0:00:11]} Rf1 {[%emt 0:01:16]} 57. Rxg7 {[%emt 0:00:26]} Rxf2+ {[%emt 0:00:06]} 58. Kg1 {[%emt 0:00:24]} Ra2 $11 {[%emt 0:03:25]} 59. h6 {[%emt 0:00:06]} Ra8 60. Kf2 {[%emt 0:00:04]} Rh8 {[%emt 0:00:01]} 61. h7 {[%emt 0:00:02]} Kf5 {[%emt 0:00:25]} 62. Rg5+ {[%emt 0:00:15]} 1/2-1/2

[Event "Gibraltar Amateurs B 2019"]
[Site "Caleta"]
[Date "2019.01.30"]
[Round "5"]
[White "Pink, Joshua"]
[Black "Cernuda Orejas, Victor Manuel"]
[Result "1-0"]
[ECO "B12"]
[WhiteElo "1890"]
[BlackElo "1893"]
[Annotator "NA RC"]
[PlyCount "127"]
[EventDate "2019.01.18"]
[EventType "swiss"]
[EventCountry "GGB"]
[SourceTitle "playchess.com"]
[Source "ChessBase"]
[SourceQuality "1"]
[TimeControl "6600+10"]

1. e4 {[%emt 0:00:02]} c6 {[%emt 0:00:00]} 2. d4 {[%emt 0:00:06]} d5 {[%emt 0:00:01]} 3. e5 {[%emt 0:00:29]} g6 {[%emt 0:00:31]} 4. Nf3 {[%emt 0:01:12]} Bg4 {[%emt 0:00:50]} 5. Be3 {[%emt 0:01:06] B12: Caro-Kann: Advance Variation} (5. Be2 Bxf3 6. Bxf3 e6 7. Nd2 Ne7 8. c3 Nf5 9. Be2 Be7 10. O-O h5 11. Nf3 Nd7 12. g3 Kf8 {1-0 (82) Ruiz Castillo,J (2368)-Khachiyan,M (2522) chess.com INT 2018}) 5... Nd7 {[%emt 0:00:11]} 6. h3 {[%emt 0:01:22]} Bxf3 {[%emt 0:00:23]} 7. Qxf3 {[%emt 0:00:02]} e6 {[%emt 0:00:11]} 8. c3 $146 {[%emt 0:00:36]} ({Predecessor:} 8. Bd3 Ne7 9. g4 Qb6 10. b3 Bg7 11. c3 c5 12. Qg3 h5 {1-0 (27) Regoli,S (2189)-Alanic,M (2077) Paris 2002}) 8... c5 {[%emt 0:01:19]} 9. Bd3 {[%emt 0:00:50]} cxd4 {[%emt 0:00:30]} 10. cxd4 {[%emt 0:00:07]} Ne7 {[%emt 0:01:57]} 11. O-O {[%emt 0:00:22]} h5 {[%emt 0:00:21]} 12. Nc3 {[%emt 0:00:53]} Nf5 {[%emt 0:00:11]} 13. Rac1 {[%emt 0:02:44]} a6 {[%emt 0:00:19]} 14. Rfe1 {[%emt 0:03:04]} Nb8 $2 {[%emt 0:00:15]} ({Black should play} 14... Nxe3 $14 15. fxe3 Bh6) 15. Ne2 {[%emt 0:02:37]} Nc6 {[%emt 0:00:22]} 16. Bxf5 {[%emt 0:00:09]} gxf5 {[%emt 0:00:09]} 17. Nf4 {[%emt 0:00:29]} Qb6 {[%emt 0:01:09]} 18. Nxh5 {[%emt 0:02:14]} O-O-O {[%emt 0:02:05]} 19. Nf4 {[%emt 0:01:40]} Bh6 {[%emt 0:00:55]} 20. Nd3 {[%emt 0:01:29]} Kb8 {[%emt 0:00:29]} 21. Nc5 {[%emt 0:01:34]} Ka8 {[%emt 0:04:36]} 22. Rc3 {[%emt 0:09:44]} Bf8 {[%emt 0:00:36]} 23. Rb3 {[%emt 0:01:24]} Qa5 {[%emt 0:00:16]} 24. Rc1 {[%emt 0:07:18]} Bxc5 $1 {[%emt 0:00:06]} 25. Rxc5 {[%emt 0:00:30]} Qxa2 {[%emt 0:00:12]} 26. Qd1 {[%emt 0:01:32]} Qa4 {[%emt 0:04:18]} 27. Qd3 {[%emt 0:08:16]} Nb8 {[%emt 0:00:41]} 28. Bd2 $2 {[%emt 0:03:02]} (28. Rc7 $18) 28... Rc8 {[%emt 0:01:07]} 29. Ra3 {[%emt 0:02:13]} Qd1+ {[%emt 0:00:34]} 30. Kh2 {[%emt 0:00:07]} Rxc5 {[%emt 0:00:08]} 31. dxc5 {[%emt 0:00:11]} Rc8 {[%emt 0:04:02]} 32. b4 {[%emt 0:00:41]} d4 {[%emt 0:08:12]} 33. Qxd4 {[%emt 0:08:01]} Qe2 {[%emt 0:00:57]} 34. Be3 {[%emt 0:02:37]} Nc6 {[%emt 0:00:22]} 35. Qd7 {[%emt 0:02:17]} Rf8 {[%emt 0:00:04]} 36. Qd2 {[%emt 0:07:53]} Qxd2 {[%emt 0:00:15]} 37. Bxd2 {[%emt 0:00:02]} Nxe5 {[%emt 0:00:09]} 38. Bf4 {[%emt 0:00:32]} Nc4 {[%emt 0:07:40]} 39. Rc3 {[%emt 0:00:36]} b5 {[%emt 0:00:33]} 40. cxb6 {[%emt 0:03:49]} Nxb6 {[%emt 0:00:04]} 41. Bd6 {[%emt 0:01:13]} Rh8 {[%emt 0:01:47]} 42. Rc7 {[%emt 0:00:07]} Rh7 {[%emt 0:00:17]} 43. Bc5 {[%emt 0:00:59]} Nd5 {[%emt 0:00:16]} 44. Ra7+ {[%emt 0:00:19]} Kb8 {[%emt 0:00:05]} 45. Rxa6 {[%emt 0:00:05]} Kb7 {[%emt 0:00:06]} 46. Ra3 {[%emt 0:01:43]} Kc6 {[%emt 0:00:17]} 47. Ra7 {[%emt 0:01:11]} Kb5 {[%emt 0:03:04]} 48. Kg3 {[%emt 0:02:37]} Kc4 {[%emt 0:00:40]} 49. Bd6 {[%emt 0:00:36]} Nf6 {[%emt 0:02:36]} 50. f3 {[%emt 0:00:47]} Kd5 {[%emt 0:02:28]} 51. Bf8 {[%emt 0:00:43]} ({White should try} 51. Be7 $18 Nh5+ 52. Kh2) 51... Kc4 {[%emt 0:01:08]} 52. Rb7 {[%emt 0:00:31]} Nd5 {[%emt 0:01:02]} 53. b5 {[%emt 0:01:20]} f4+ {[%emt 0:00:28]} 54. Kf2 {[%emt 0:00:09]} Ne3 {[%emt 0:04:01] [#]} 55. Bd6 $1 {[%emt 0:00:47]} Nd1+ {[%emt 0:01:02]} (55... Nd5 {might work better.} 56. Kg1 Rh4) 56. Kg1 {[%emt 0:01:23]} Ne3 {[%emt 0:02:32]} 57. Bxf4 {[%emt 0:00:27]} Nf5 {[%emt 0:00:07]} 58. Kf2 {[%emt 0:01:07]} Nh4 {[%emt 0:03:08]} (58... Kc5 $142 59. g4 Nd4) 59. Be3 {[%emt 0:00:21]} Nf5 {[%emt 0:00:32]} 60. b6 {[%emt 0:00:21]} Rh8 {[%emt 0:09:33]} 61. Rc7+ {[%emt 0:01:24]} Kd5 {[%emt 0:02:10]} 62. b7 {[%emt 0:00:12]} Nd6 {[%emt 0:00:16]} 63. Ba7 {[%emt 0:00:51]} (63. Rc5# $142) 63... Nxb7 $18 {[%emt 0:02:02]} 64. Rxb7 {[%emt 0:00:05]} 1-0